[Event "WCCC G10 2019"]
[Site "Weifang"]
[Date "2019.08.30"]
[Round "9.4"]
[White "Feng, Angela"]
[Black "Mou, Iris"]
[Result "1-0"]
[ECO "C12"]
[WhiteElo "1426"]
[BlackElo "1669"]
[Annotator "NA"]
[PlyCount "161"]
[EventDate "2019.08.21"]
[EventType "swiss"]
[EventCountry "CHN"]
[SourceTitle "playchess.com"]
[Source "ChessBase"]
[SourceQuality "1"]
[TimeControl "40/5400+30:1800+30"]

1. e4 {[%emt 0:00:00]} e6 {[%emt 0:00:00]} 2. d4 {[%emt 0:00:00]} d5 {[%emt 0:00:00]} 3. Nc3 {[%emt 0:00:05]} Nf6 {[%emt 0:00:00]} 4. Bg5 {[%emt 0:00:36]} Bb4 {[%emt 0:00:05]} 5. e5 {[%emt 0:03:40]} h6 {[%emt 0:00:12]} 6. exf6 {[%emt 0:02:13]} hxg5 {[%emt 0:00:12]} 7. fxg7 {[%emt 0:00:37]} Rg8 {[%emt 0:00:09]} 8. Qd3 {[%emt 0:05:52]} Rxg7 {[%emt 0:02:31]} 9. h3 {[%emt 0:07:13]} Nc6 {[%emt 0:05:11]} 10. Nf3 {[%emt 0:01:22]} Qf6 {[%emt 0:02:49]} 11. Qe3 {[%emt 0:04:24]} Qe7 {[%emt 0:08:37]} 12. Bb5 {[%emt 0:03:23]} Bd7 {[%emt 0:05:02]} 13. O-O-O {[%emt 0:04:27]} O-O-O {[%emt 0:03:31]} 14. a3 {[%emt 0:18:04]} Bd6 {[%emt 0:02:24]} 15. Kb1 {[%emt 0:03:21]} Kb8 {[%emt 0:02:14]} 16. Rhe1 {[%emt 0:05:29]} a6 {[%emt 0:05:15]} 17. Bxc6 {[%emt 0:09:26]} Bxc6 {[%emt 0:04:28]} 18. Ne5 {[%emt 0:01:23]} Ka7 {[%emt 0:03:10]} 19. Na2 {[%emt 0:05:53]} Be8 {[%emt 0:06:45]} 20. Nd3 {[%emt 0:03:01]} Bb5 {[%emt 0:04:43]} 21. Nab4 {[%emt 0:04:45]} Re8 {[%emt 0:05:10]} 22. Nc5 {[%emt 0:03:49]} b6 {[%emt 0:03:43]} 23. Ncd3 {[%emt 0:01:29]} a5 {[%emt 0:02:42]} 24. Na2 {[%emt 0:00:57]} Kb7 {[%emt 0:06:23]} 25. Nc3 {[%emt 0:01:34]} Ba6 {[%emt 0:01:02]} 26. Qf3 {[%emt 0:01:30]} c6 {[%emt 0:02:23]} 27. Na4 {[%emt 0:04:11]} Rh8 {[%emt 0:09:48]} 28. Rh1 {[%emt 0:02:59]} Rh4 {[%emt 0:02:30]} 29. g4 {[%emt 0:01:51]} Rgh7 {[%emt 0:03:23]} 30. Rde1 {[%emt 0:00:40]} Qe8 {[%emt 0:04:17]} 31. Ne5 {[%emt 0:00:29]} c5 {[%emt 0:01:26]} 32. dxc5 {[%emt 0:00:25]} Bxe5 {[%emt 0:00:39]} 33. Rxe5 {[%emt 0:00:45]} Qxa4 {[%emt 0:00:16]} 34. cxb6 {[%emt 0:00:11]} Qf4 {[%emt 0:01:56]} 35. Qc3 {[%emt 0:00:45]} Qc4 {[%emt 0:00:28]} 36. Qf3 {[%emt 0:00:12]} Rxh3 {[%emt 0:02:33]} 37. Rxh3 {[%emt 0:00:29]} Qf1+ {[%emt 0:00:09]} 38. Ka2 {[%emt 0:00:20]} Qxh3 {[%emt 0:00:12]} 39. Qf6 {[%emt 0:00:19]} Bc4+ {[%emt 0:01:17]} 40. b3 {[%emt 0:00:20]} Bb5 {[%emt 0:01:22]} 41. Qe7+ {[%emt 0:30:31]} Kxb6 {[%emt 0:30:21]} 42. Qd6+ {[%emt 0:00:00]} Bc6 {[%emt 0:00:00]} 43. Qb8+ {[%emt 0:00:00]} Kc5 {[%emt 0:00:00]} 44. b4+ {[%emt 0:00:00]} Kc4 {[%emt 0:00:00]} 45. Qb6 {[%emt 0:00:00]} Kc3 {[%emt 0:00:00]} 46. Re3+ {[%emt 0:00:00]} Qxe3 {[%emt 0:00:00]} 47. Qxe3+ {[%emt 0:00:00]} Kxc2 {[%emt 0:00:00]} 48. Qc5+ {[%emt 0:00:00]} Kd3 {[%emt 0:00:00]} 49. Qxc6 {[%emt 0:00:00]} axb4 {[%emt 0:00:00]} 50. Qb5+ {[%emt 0:00:00]} Ke4 {[%emt 0:00:00]} 51. Qxb4+ {[%emt 0:00:00]} Kf3 {[%emt 0:00:00]} 52. Qd4 {[%emt 0:00:00]} Rh2 {[%emt 0:00:00]} 53. Qe3+ {[%emt 0:00:00]} Kg2 {[%emt 0:00:00]} 54. Qg3+ {[%emt 0:00:00]} Kh1 {[%emt 0:00:00]} 55. a4 {[%emt 0:00:00]} Rg2 {[%emt 0:00:00]} 56. Qf3 {[%emt 0:00:00]} Kg1 {[%emt 0:00:00]} 57. Qd1+ {[%emt 0:00:00]} Kxf2 {[%emt 0:00:00]} 58. a5 {[%emt 0:00:00]} Kg3+ {[%emt 0:00:00]} 59. Ka3 {[%emt 0:00:00]} Rh2 {[%emt 0:00:00]} 60. a6 {[%emt 0:01:33]} Rh8 {[%emt 0:00:00]} 61. a7 {[%emt 0:00:34]} Ra8 {[%emt 0:00:00]} 62. Qd4 {[%emt 0:02:09]} f6 {[%emt 0:00:00]} 63. Qe3+ {[%emt 0:00:50]} Kxg4 {[%emt 0:00:22]} 64. Qxe6+ {[%emt 0:00:09]} f5 {[%emt 0:00:10]} 65. Qb6 {[%emt 0:00:41]} f4 {[%emt 0:00:20]} 66. Qb7 {[%emt 0:00:32]} Rxa7+ {[%emt 0:00:10]} 67. Qxa7 {[%emt 0:00:05]} Kg3 {[%emt 0:00:19]} 68. Qg1+ {[%emt 0:00:36]} Kh3 {[%emt 0:02:00]} 69. Qxg5 {[%emt 0:01:17]} f3 {[%emt 0:00:24]} 70. Qg1 {[%emt 0:00:09]} d4 {[%emt 0:00:17]} 71. Kb3 {[%emt 0:00:14]} d3 {[%emt 0:00:10]} 72. Kc3 {[%emt 0:00:07]} d2 {[%emt 0:00:25]} 73. Kxd2 {[%emt 0:00:08]} f2 {[%emt 0:00:05]} 74. Qxf2 {[%emt 0:00:10]} Kg4 {[%emt 0:00:06]} 75. Qf6 {[%emt 0:00:24]} Kg3 {[%emt 0:00:09]} 76. Qf5 {[%emt 0:00:11]} Kg2 {[%emt 0:00:09]} 77. Qf4 {[%emt 0:00:26]} Kh1 {[%emt 0:00:06]} 78. Qg4 {[%emt 0:00:20]} Kh2 {[%emt 0:00:04]} 79. Ke2 {[%emt 0:00:05]} Kh1 {[%emt 0:00:06]} 80. Kf2 {[%emt 0:00:07]} Kh2 {[%emt 0:00:05]} 81. Qg2# {[%emt 0:00:05]} 1-0

[Event "WCCC G10 2019"]
[Site "Weifang"]
[Date "2019.08.30"]
[Round "9.5"]
[White "Jiang, Tianyu"]
[Black "Kaliakhmet, Elnaz"]
[Result "1-0"]
[ECO "B55"]
[WhiteElo "1381"]
[BlackElo "1538"]
[Annotator "NA RC"]
[PlyCount "111"]
[EventDate "2019.08.21"]
[EventType "swiss"]
[EventCountry "CHN"]
[SourceTitle "playchess.com"]
[Source "ChessBase"]
[SourceQuality "1"]
[TimeControl "40/5400+30:1800+30"]

1. e4 {[%emt 0:00:00]} c5 {[%emt 0:00:00]} 2. Nf3 {[%emt 0:00:00]} d6 {[%emt 0:01:19]} 3. d4 {[%emt 0:00:24]} cxd4 {[%emt 0:00:11]} 4. Nxd4 {[%emt 0:00:21]} Nf6 {[%emt 0:00:53]} 5. f3 {[%emt 0:00:15]} e5 {[%emt 0:01:02]} 6. Nb3 {[%emt 0:00:26]} Be6 {[%emt 0:00:57]} 7. c4 {[%emt 0:06:13]} Nc6 {[%emt 0:03:17]} 8. Be3 {[%emt 0:02:08]} Rc8 {[%emt 0:04:58]} 9. Qd2 {[%emt 0:07:19]} Be7 {[%emt 0:03:06]} 10. Be2 {[%emt 0:00:44]} Qc7 {[%emt 0:01:47]} 11. O-O {[%emt 0:02:40]} O-O {[%emt 0:00:31]} 12. Rc1 {[%emt 0:02:06]} Qb8 {[%emt 0:04:47]} 13. Nc3 {[%emt 0:02:05]} Rfd8 {[%emt 0:08:26]} 14. Nd5 {[%emt 0:01:52]} Rd7 {[%emt 0:08:44]} 15. a4 {[%emt 0:04:24]} Bd8 {[%emt 0:03:45]} 16. a5 {[%emt 0:08:11]} Bxd5 {[%emt 0:01:51]} 17. cxd5 {[%emt 0:00:15]} Ne7 {[%emt 0:00:32]} 18. Bg5 {[%emt 0:09:15]} Ng6 {[%emt 0:02:22]} 19. Rxc8 {[%emt 0:01:32]} Qxc8 {[%emt 0:00:18]} 20. Be3 {[%emt 0:00:53]} Qb8 {[%emt 0:00:53]} 21. Qb4 {[%emt 0:02:12]} Nh5 {[%emt 0:05:47]} 22. Bf1 {[%emt 0:02:25]} Nhf4 {[%emt 0:08:17]} 23. Nd2 {[%emt 0:05:26]} Bg5 {[%emt 0:06:42]} 24. Nc4 {[%emt 0:06:18]} Be7 {[%emt 0:04:51]} 25. a6 {[%emt 0:03:26]} b6 {[%emt 0:15:58]} 26. Bxb6 {[%emt 0:05:41]} axb6 {[%emt 0:02:14]} 27. Qxb6 {[%emt 0:00:10]} Qxb6+ {[%emt 0:07:36]} 28. Nxb6 {[%emt 0:00:07]} Ra7 {[%emt 0:00:11]} 29. Nc8 {[%emt 0:00:12]} Ra8 {[%emt 0:00:21]} 30. Nb6 {[%emt 0:05:21]} Ra7 {[%emt 0:00:15]} 31. Rc1 {[%emt 0:02:18]} f6 {[%emt 0:01:08]} 32. Rc8+ {[%emt 0:01:40]} Kf7 {[%emt 0:00:13]} 33. Ra8 {[%emt 0:01:53]} Rxa8 {[%emt 0:02:01]} 34. Nxa8 {[%emt 0:00:03]} Nf8 {[%emt 0:01:07]} 35. Bb5 {[%emt 0:01:00]} N4e6 {[%emt 0:00:35]} 36. dxe6+ {[%emt 0:00:19]} Nxe6 {[%emt 0:00:17]} 37. Bc4 {[%emt 0:00:13]} d5 {[%emt 0:00:27]} 38. Bxd5 {[%emt 0:00:42]} Bc5+ {[%emt 0:00:08]} 39. Kf1 {[%emt 0:00:08]} Ke7 {[%emt 0:00:29]} 40. Bxe6 {[%emt 0:00:47]} Kxe6 {[%emt 0:00:08]} 41. b4 {[%emt 0:30:52]} Ba7 {[%emt 0:31:24]} 42. b5 {[%emt 0:00:37]} Kd7 {[%emt 0:00:00]} 43. b6 {[%emt 0:00:00]} Bxb6 {[%emt 0:00:00]} 44. Nxb6+ {[%emt 0:00:03]} Kc6 {[%emt 0:00:00]} 45. a7 {[%emt 0:00:00]} Kb7 {[%emt 0:00:00]} 46. a8=Q+ {[%emt 0:00:00]} Kxb6 {[%emt 0:00:00]} 47. Qd5 {[%emt 0:00:00]} Kc7 {[%emt 0:00:00]} 48. Qe6 {[%emt 0:00:00]} Kd8 {[%emt 0:00:00]} 49. Qf7 {[%emt 0:00:00]} Kc8 {[%emt 0:00:00]} 50. Qe7 {[%emt 0:00:00]} Kb8 {[%emt 0:00:00]} 51. Ke2 {[%emt 0:00:00]} Kc8 {[%emt 0:00:00]} 52. Kd3 {[%emt 0:00:00]} Kb8 {[%emt 0:00:00]} 53. Kc4 {[%emt 0:00:00]} Kc8 {[%emt 0:00:00]} 54. Kc5 {[%emt 0:00:00]} Kb8 {[%emt 0:00:00]} 55. Kb6 {[%emt 0:00:00]} Kc8 {[%emt 0:00:00]} 56. Qe8# {[%emt 0:00:00]} 1-0

[Event "WCCC G10 2019"]
[Site "Weifang"]
[Date "2019.08.30"]
[Round "9.9"]
[White "Sachi Jain"]
[Black "Shukhman, Anna"]
[Result "0-1"]
[ECO "A08"]
[WhiteElo "1282"]
[BlackElo "1806"]
[Annotator "NA RC"]
[PlyCount "96"]
[EventDate "2019.08.21"]
[EventType "swiss"]
[EventCountry "CHN"]
[SourceTitle "playchess.com"]
[Source "ChessBase"]
[SourceQuality "1"]
[TimeControl "40/5400+30:1800+30"]

1. e4 {[%emt 0:00:00]} c5 {[%emt 0:00:00]} 2. Nf3 {[%emt 0:00:00]} e6 {[%emt 0:00:00]} 3. d3 {[%emt 0:00:25]} Nc6 {[%emt 0:01:07]} 4. Nbd2 {[%emt 0:00:25]} d5 {[%emt 0:00:25]} 5. g3 {[%emt 0:00:25]} Nf6 {[%emt 0:02:20]} 6. Bg2 {[%emt 0:00:21]} dxe4 {[%emt 0:00:32]} 7. dxe4 {[%emt 0:00:26]} e5 {[%emt 0:00:44]} 8. O-O {[%emt 0:01:34]} Be7 {[%emt 0:00:50]} 9. Qe2 {[%emt 0:01:30]} O-O {[%emt 0:00:41]} 10. c3 {[%emt 0:03:10]} h6 {[%emt 0:03:27] A08: King's Indian Attack} (10... Qc7 11. Nc4 Be6 12. Nh4 Rad8 13. Nf5 Rfe8 14. Bg5 h6 15. Bxf6 Bxf6 16. Nce3 Ne7 17. h4 Kh7 18. Kh2 Ng8 {1-0 (49) Vallejo Pons,F (2710)-Bellia,F (2433) Gallipoli 2017}) 11. Nc4 {[%emt 0:01:50]} Qc7 {[%emt 0:00:51]} 12. Ne3 {[%emt 0:03:46]} Be6 {[%emt 0:05:31]} 13. Nh4 {[%emt 0:01:12]} Rfd8 {[%emt 0:03:23]} 14. Nhf5 {[%emt 0:04:44]} Bf8 {[%emt 0:04:18]} 15. Qf3 {[%emt 0:01:59]} Nh7 $146 {[%emt 0:04:04]} ({Predecessor:} 15... Be7 16. g4 Rd7 17. h4 Rad8 18. g5 hxg5 19. hxg5 {1-0 (37) Martinez Duany,L (2463)-Andrenko,I (2233) Mexico City 2012}) 16. Nd5 {[%emt 0:09:59]} Qc8 {[%emt 0:08:37]} 17. g4 {[%emt 0:09:52]} c4 {[%emt 0:09:59]} 18. Qe2 {[%emt 0:18:52]} b5 {[%emt 0:13:29]} 19. a4 {[%emt 0:04:24]} b4 {[%emt 0:05:40]} 20. Qxc4 {[%emt 0:02:59]} bxc3 {[%emt 0:00:34]} 21. Qxc3 {[%emt 0:02:02]} Bxf5 {[%emt 0:01:43]} 22. exf5 {[%emt 0:01:39]} Nd4 {[%emt 0:01:15]} 23. Qh3 {[%emt 0:06:02]} (23. Qxc8 $14 Raxc8 24. Be3) 23... Rb8 {[%emt 0:09:54]} 24. f6 {[%emt 0:07:58]} Qe6 {[%emt 0:11:27]} (24... Rb3 $5 25. Qh5 $8 Qe6 26. fxg7 Bxg7 $15) 25. fxg7 {[%emt 0:01:35]} Bxg7 {[%emt 0:00:08]} 26. Nc3 {[%emt 0:00:36]} Rb3 {[%emt 0:02:24]} 27. Rb1 $2 {[%emt 0:01:50] [#]} (27. Qh4 $14 {keeps the upper hand.} Rd7 28. Ne4) 27... Ne2+ $1 {[%emt 0:01:12] Pin} 28. Kh1 {[%emt 0:01:30]} Nxc3 {[%emt 0:00:06]} 29. bxc3 {[%emt 0:02:07]} Rxb1 {[%emt 0:00:07]} 30. Be4 {[%emt 0:00:15]} Ng5 $19 {[%emt 0:00:53]} 31. Bxg5 {[%emt 0:01:48]} Rxf1+ {[%emt 0:00:23]} 32. Qxf1 {[%emt 0:00:09]} hxg5 {[%emt 0:00:03]} 33. Qe2 {[%emt 0:01:17]} Qd7 {[%emt 0:00:39]} 34. a5 {[%emt 0:00:50]} Qd1+ {[%emt 0:00:14]} 35. Qxd1 {[%emt 0:00:06]} Rxd1+ {[%emt 0:00:04]} 36. Kg2 {[%emt 0:00:06]} Ra1 {[%emt 0:00:18]} 37. c4 {[%emt 0:00:14]} Rxa5 {[%emt 0:00:04]} 38. Bd5 {[%emt 0:00:05]} Bf8 {[%emt 0:00:06]} 39. Kf3 {[%emt 0:00:19]} Ra2 {[%emt 0:00:33]} 40. Ke4 {[%emt 0:00:14]} Re2+ {[%emt 0:00:32]} 41. Kf5 {[%emt 0:30:13]} Be7 {[%emt 0:30:38]} 42. c5 {[%emt 0:00:20]} Bxc5 {[%emt 0:00:10]} 43. Kxg5 {[%emt 0:00:09]} Rxf2 {[%emt 0:00:09]} 44. h4 {[%emt 0:00:09]} Be3+ {[%emt 0:00:23]} 45. Kh5 {[%emt 0:00:12]} Kg7 {[%emt 0:00:25]} 46. g5 {[%emt 0:00:17]} Rf4 {[%emt 0:00:52]} 47. Bc4 {[%emt 0:00:26]} Rxc4 {[%emt 0:00:17]} 48. g6 {[%emt 0:00:26]} fxg6# {[%emt 0:00:03]} 0-1

[Event "WCCC G10 2019"]
[Site "Weifang"]
[Date "2019.09.01"]
[Round "11.1"]
[White "Lee, Alice"]
[Black "Zhou, Yafei"]
[Result "1-0"]
[ECO "E92"]
[WhiteElo "1822"]
[BlackElo "1757"]
[Annotator "NA RC"]
[PlyCount "113"]
[EventDate "2019.08.21"]
[EventType "swiss"]
[EventCountry "CHN"]
[SourceTitle "playchess.com"]
[Source "ChessBase"]
[SourceQuality "1"]
[TimeControl "40/5400+30:1800+30"]

{[%evp 8,110,42,29,37,34,36,32767,32767,32767,32767,32767,32767,32767,32767,32767,49,48,46,55,58,69,72,78,32767,32767,32767,32767,32767,110,175,184,200,207,300,168,32767,32767,291,312,320,252,245,158,81,70,57,43,58,58,0,2,30,4,30,16,40,37,43,0,98,0,325,317,378,385,359,348,32767,456,32767,638,669,32767,32767,588,32767,32767,32767,1380,2247,839,710,290,477,516,626,709,1035,482,1999,1656,4718,4775,29979,29984,29982,29986,32767,32767,29989,29990,29990,29991,29991]} 1. d4 {[%emt 0:00:00]} Nf6 {[%emt 0:00:00]} 2. c4 {[%emt 0:00:00]} g6 {[%emt 0:00:00]} 3. Nc3 {[%emt 0:00:00]} Bg7 {[%emt 0:00:00]} 4. e4 {[%emt 0:00:00]} d6 {[%emt 0:00:00]} 5. Nf3 {[%emt 0:00:10]} O-O {[%emt 0:00:11]} 6. Be2 {[%emt 0:00:21]} e5 {[%emt 0:00:14]} 7. d5 {[%emt 0:00:46]} a5 {[%emt 0:00:43]} 8. Bg5 {[%emt 0:00:30]} Na6 {[%emt 0:01:43]} 9. Nd2 {[%emt 0:01:32]} Qe8 {[%emt 0:00:22]} 10. a3 {[%emt 0:02:52]} Bd7 {[%emt 0:00:31]} 11. b3 {[%emt 0:01:26]} h6 {[%emt 0:12:30] E92: King's Indian: Classical: 6 Be2 e5: 7 dxe5, 7 Be3 and Petrosian System without 7...Nbd7} 12. Be3 {[%emt 0:01:23]} Nh7 {[%emt 0:00:22]} 13. Rb1 {[%emt 0:03:09]} (13. O-O f5 14. f3 Kh8 15. Rb1 Nc5 16. Qc2 b6 17. b4 Nb7 18. Nb5 {1-0 (94) Stocek,J (2566)-McShane,L (2640) Katowice 2017}) 13... f5 {[%emt 0:00:49]} 14. f3 $1 {[%emt 0:01:08]} b6 {[%emt 0:03:09]} 15. b4 {[%emt 0:03:24]} Qe7 $146 {[%emt 0:03:58]} ({Predecessor:} 15... axb4 16. axb4 f4 17. Bf2 g5 18. Qb3 Qg6 19. Kd1 {1-0 (42) Peek,M (2325)-Ducarmon,R (2091) Vlissingen 2016}) 16. O-O {[%emt 0:07:08]} f4 {[%emt 0:01:17]} 17. Bf2 {[%emt 0:00:17]} g5 {[%emt 0:00:19]} 18. c5 {[%emt 0:05:45]} axb4 {[%emt 0:06:29] [#]} (18... bxc5 $16 19. b5 (19. bxa5 Nf6 $14) 19... Nb4) 19. cxd6 $1 {[%emt 0:03:29]} cxd6 {[%emt 0:06:55]} 20. axb4 {[%emt 0:01:44]} h5 {[%emt 0:05:17]} (20... b5 $142 21. Nxb5 (21. Bxb5 Bxb5 22. Nxb5 Rfb8 $18) 21... g4 22. fxg4 Rfb8) 21. Bxb6 {[%emt 0:06:36]} Nf6 {[%emt 0:03:44]} 22. Bf2 {[%emt 0:03:58]} Bh6 {[%emt 0:04:06]} 23. Nc4 {[%emt 0:03:40]} g4 {[%emt 0:04:45]} 24. Nb6 {[%emt 0:05:18]} g3 {[%emt 0:01:02]} 25. hxg3 {[%emt 0:01:50]} ({Less strong is} 25. Nxa8 gxf2+ 26. Rxf2 Rxa8 $16) 25... fxg3 {[%emt 0:01:17]} 26. Bxg3 {[%emt 0:00:59]} ({Worse is} 26. Nxa8 gxf2+ 27. Rxf2 Ng4 $15) 26... Qg7 {[%emt 0:00:44] [#]} 27. Bf2 {[%emt 0:05:16]} ({Don't take} 27. Nxa8 $6 Qxg3 28. Qe1 Qxe1 $16) (27. Kh2 $1 $18 Kh7 28. Bh4 (28. Nxa8 Rg8 $15)) 27... Bh3 $1 {[%emt 0:01:09]} 28. g3 {[%emt 0:00:55]} Be3 $1 {[%emt 0:01:57]} 29. Kh1 {[%emt 0:03:39]} Bxb6 {[%emt 0:12:59]} (29... Ng4 $1 $15 30. fxg4 Bxf2 31. Nxa8 (31. Rxf2 Rxf2 32. Qd3 Raf8 $19) 31... Bxf1 32. Bxf1 (32. Qxf1 $2 hxg4 33. Kg2 Bd4 $19) 32... hxg4) 30. Bxb6 {[%emt 0:01:42]} Bxf1 {[%emt 0:00:09]} ({But not} 30... Qxg3 $2 31. Rg1 $18) 31. Qxf1 {[%emt 0:00:36]} Qxg3 {[%emt 0:04:17]} 32. Bf2 {[%emt 0:06:01]} Qf4 {[%emt 0:01:40]} 33. Qh3 {[%emt 0:03:53]} Nc7 {[%emt 0:07:45] [#]} (33... Kh8 $11 {remains equal.}) 34. Rg1+ {[%emt 0:01:35]} (34. b5 $1 $16 {[%cal Rb5b6]} Ra3 35. Be1 (35. Rg1+ Kh8 $11)) 34... Kf7 $2 {[%emt 0:00:47] [#]} (34... Kh7 $11 {and Black is okay.}) 35. Nb5 $1 {[%emt 0:01:23]} Rg8 {[%emt 0:08:34]} 36. Nxc7 {[%emt 0:07:17]} Rxg1+ {[%emt 0:00:24]} 37. Bxg1 {[%emt 0:01:38]} Ra1 {[%emt 0:00:50]} 38. Nb5 {[%emt 0:03:49]} Qg5 {[%emt 0:03:22]} 39. Nxd6+ {[%emt 0:01:23]} Kg6 {[%emt 0:00:50]} 40. Qf5+ {[%emt 0:05:07]} Qxf5 {[%emt 0:00:19]} 41. Nxf5 {[%emt 0:31:26]} Nxd5 {[%emt 0:31:21]} 42. Nh4+ {[%emt 0:01:06]} Kg5 {[%emt 0:00:13]} 43. exd5 {[%emt 0:00:08]} Kxh4 {[%emt 0:00:56]} 44. Kg2 {[%emt 0:02:07]} (44. d6 $142 Ra8 45. Bb6) 44... Ra2 {[%emt 0:00:32]} 45. Bf2+ $2 {[%emt 0:01:27]} (45. Kf1 Ra1+ 46. Kf2) 45... Kg5 {[%emt 0:00:07]} 46. Bf1 {[%emt 0:00:00]} h4 {[%emt 0:00:00]} 47. Kg1 {[%emt 0:00:00]} Kf4 {[%emt 0:00:00]} 48. Bxh4 {[%emt 0:00:00]} (48. b5 $142 Kf5 49. d6) 48... Kxf3 {[%emt 0:00:00]} 49. b5 {[%emt 0:00:00]} e4 {[%emt 0:00:00]} 50. b6 {[%emt 0:00:00]} e3 {[%emt 0:00:00]} 51. b7 {[%emt 0:00:00]} Rb2 {[%emt 0:00:00]} 52. d6 {[%emt 0:00:00]} Rb1 {[%emt 0:00:00]} 53. Kh2 {[%emt 0:00:00]} Rb2+ {[%emt 0:00:00]} 54. Kh3 {[%emt 0:00:00]} e2 {[%emt 0:00:00]} 55. Bg2+ {[%emt 0:00:00]} Kf4 {[%emt 0:00:00]} 56. d7 {[%emt 0:00:00]} Rb3+ {[%emt 0:00:00]} 57. Kh2 {[%emt 0:00:00]} 1-0

[Event "WCCC G10 2019"]
[Site "Weifang"]
[Date "2019.09.01"]
[Round "11.2"]
[White "Shukhman, Anna"]
[Black "Chen, Yining"]
[Result "0-1"]
[ECO "C68"]
[WhiteElo "1806"]
[BlackElo "1744"]
[Annotator "NA"]
[PlyCount "158"]
[EventDate "2019.08.21"]
[EventType "swiss"]
[EventCountry "CHN"]
[SourceTitle "playchess.com"]
[Source "ChessBase"]
[SourceQuality "1"]
[TimeControl "40/5400+30:1800+30"]

1. e4 {[%emt 0:00:00]} e5 {[%emt 0:00:00]} 2. Nf3 {[%emt 0:00:00]} Nc6 {[%emt 0:00:10]} 3. Bb5 {[%emt 0:00:00]} a6 {[%emt 0:00:20]} 4. Bxc6 {[%emt 0:00:04]} dxc6 {[%emt 0:00:22]} 5. O-O {[%emt 0:00:13]} Bd6 {[%emt 0:00:42]} 6. d4 {[%emt 0:00:20]} exd4 {[%emt 0:00:12]} 7. Qxd4 {[%emt 0:00:05]} f6 {[%emt 0:00:07]} 8. Nbd2 {[%emt 0:00:08]} Be6 {[%emt 0:00:11]} 9. b3 {[%emt 0:00:11]} Qe7 {[%emt 0:04:40] C68: Ruy Lopez: Exchange Variation, sidelines} 10. Nc4 {[%emt 0:00:52]} Bc5 {[%emt 0:01:21]} 11. Qd3 {[%emt 0:01:35]} Qd7 {[%emt 0:05:37]} 12. Qc3 $146 {[%emt 0:02:17]} ({Predecessor:} 12. Qxd7+ Bxd7 13. Be3 Be7 14. Nd4 O-O-O 15. Rad1 Re8 16. f3 Bf8 17. Bf2 {½-½ (44) Nisipeanu,L (2683)-Carlsen,M (2850) Reykjavik 2015}) 12... O-O-O {[%emt 0:04:39]} 13. Bb2 {[%emt 0:04:56]} Nh6 {[%emt 0:04:44]} 14. e5 {[%emt 0:11:05]} f5 {[%emt 0:09:38]} 15. Ng5 {[%emt 0:08:00]} (15. Bc1 $1 $14) 15... Nf7 {[%emt 0:06:58]} 16. Rad1 {[%emt 0:12:29]} Qe7 {[%emt 0:04:52]} 17. Nxe6 {[%emt 0:00:20]} Qxe6 {[%emt 0:00:52]} 18. Ne3 {[%emt 0:00:28]} Ba7 {[%emt 0:03:33]} 19. Qc4 {[%emt 0:10:18]} Qxc4 {[%emt 0:02:25]} 20. Nxc4 {[%emt 0:00:13]} Ng5 {[%emt 0:01:40]} 21. Bc1 {[%emt 0:02:35] [#]} Ne6 {[%emt 0:05:17]} (21... Ne4 $1 $17 22. Rde1 Rhe8) 22. c3 {[%emt 0:11:28]} Rd5 {[%emt 0:05:33]} 23. Be3 {[%emt 0:11:42]} (23. Rxd5 $11 cxd5 24. Nb2) 23... Bb8 {[%emt 0:07:11]} (23... Rhd8 $17 24. Rde1 Bxe3 25. Nxe3 Rd2 26. Nxf5 Rxa2) 24. f4 {[%emt 0:04:00]} Rhd8 {[%emt 0:00:43]} 25. Nb2 {[%emt 0:01:20]} b5 {[%emt 0:03:38]} 26. Kf2 {[%emt 0:02:25]} Kb7 {[%emt 0:04:25]} 27. g4 {[%emt 0:03:35]} g6 {[%emt 0:03:22] [#]} 28. gxf5 $1 {[%emt 0:00:59]} gxf5 {[%emt 0:00:07]} 29. c4 {[%emt 0:02:28]} Rxd1 {[%emt 0:02:13]} 30. Rxd1 {[%emt 0:00:09]} Rxd1 {[%emt 0:02:39]} 31. Nxd1 {[%emt 0:00:03]} Ba7 {[%emt 0:00:08]} 32. Bxa7 {[%emt 0:00:05]} Kxa7 {[%emt 0:00:03]} 33. Kf3 {[%emt 0:00:43]} bxc4 {[%emt 0:02:02]} 34. bxc4 {[%emt 0:00:05]} Kb6 {[%emt 0:00:19]} 35. Ne3 {[%emt 0:03:36]} Nd4+ {[%emt 0:11:26] [#]} (35... Ng7 $1 $14) 36. Kf2 {[%emt 0:02:48]} (36. Kg3 $1 $18) 36... c5 {[%emt 0:01:51]} 37. Nd5+ {[%emt 0:01:03]} (37. Kg3 $142) 37... Kc6 {[%emt 0:01:04]} 38. Ke3 {[%emt 0:00:24]} h6 {[%emt 0:00:55] [#]} 39. h4 {[%emt 0:01:32]} (39. Nf6 $1 $18) 39... Kd7 {[%emt 0:01:17]} 40. Nf6+ {[%emt 0:01:24]} Ke6 {[%emt 0:00:22]} 41. Nd5 {[%emt 0:30:52]} Kd7 {[%emt 0:30:30]} 42. h5 {[%emt 0:01:36]} c6 {[%emt 0:02:15] [#]} 43. Nf6+ $1 {[%emt 0:02:18]} Ke7 {[%emt 0:00:00]} 44. a4 {[%emt 0:00:00]} Nc2+ {[%emt 0:00:00]} 45. Kd3 {[%emt 0:00:00]} Nd4 {[%emt 0:00:00]} 46. a5 {[%emt 0:00:00]} Ke6 {[%emt 0:00:00]} 47. Ne8 {[%emt 0:00:00]} Ke7 {[%emt 0:00:00]} 48. Nd6 {[%emt 0:00:00]} Kd7 {[%emt 0:00:00]} 49. Nf7 {[%emt 0:00:00]} Ne6 {[%emt 0:00:00]} 50. Nxh6 {[%emt 0:00:00]} Ng7 $2 {[%emt 0:00:00] [#]} (50... Nxf4+ $11 {and Black has nothing to worry.} 51. Ke3 Nxh5) 51. Nf7 $1 {[%emt 0:00:00]} Nxh5 $18 {[%emt 0:00:00]} 52. Ke3 {[%emt 0:00:00]} Ng7 {[%emt 0:00:00]} 53. Nd6 {[%emt 0:00:00]} Ke7 {[%emt 0:00:00]} 54. Kf3 {[%emt 0:00:00]} Kd7 {[%emt 0:00:00]} 55. Nb7 {[%emt 0:01:09]} Ne6 {[%emt 0:00:00]} 56. Kg3 {[%emt 0:00:24]} Ke7 {[%emt 0:00:00]} 57. Nd6 {[%emt 0:00:24]} Nd4 {[%emt 0:00:00]} 58. Kh4 {[%emt 0:00:45]} Nf3+ {[%emt 0:00:00]} 59. Kh5 {[%emt 0:01:02]} Ke6 {[%emt 0:00:11]} 60. Nb7 {[%emt 0:00:55]} Nd2 {[%emt 0:03:25]} 61. Nxc5+ {[%emt 0:00:16]} Ke7 {[%emt 0:00:02]} 62. Nb3 {[%emt 0:02:08]} Nxb3 {[%emt 0:00:25]} 63. Kh4 {[%emt 0:00:10]} Nxa5 {[%emt 0:00:07]} 64. Kg3 {[%emt 0:00:03]} Nxc4 {[%emt 0:00:05]} 65. Kf3 {[%emt 0:00:02]} a5 {[%emt 0:00:04]} 66. Ke2 {[%emt 0:00:03]} Ke6 {[%emt 0:00:14]} 67. Kd3 {[%emt 0:00:03]} Nxe5+ {[%emt 0:00:03]} 68. fxe5 {[%emt 0:00:04]} Kxe5 {[%emt 0:00:04]} 69. Kc4 {[%emt 0:00:02]} f4 {[%emt 0:00:04]} 70. Kc5 {[%emt 0:00:02]} a4 {[%emt 0:00:03]} 71. Kb6 {[%emt 0:00:03]} a3 {[%emt 0:00:02]} 72. Kb7 {[%emt 0:00:03]} a2 {[%emt 0:00:04]} 73. Kc7 {[%emt 0:00:02]} a1=Q {[%emt 0:00:04]} 74. Kb8 {[%emt 0:00:02]} f3 {[%emt 0:00:08]} 75. Kb7 {[%emt 0:00:04]} f2 {[%emt 0:00:03]} 76. Kc7 {[%emt 0:00:03]} f1=Q {[%emt 0:00:07]} 77. Kb7 {[%emt 0:00:01]} Qaa6+ {[%emt 0:00:06]} 78. Kc7 {[%emt 0:00:04]} Qf7+ {[%emt 0:00:03]} 79. Kb8 {[%emt 0:00:04]} Qab7# {[%emt 0:00:04]} 0-1